{"text_format":"1","workbook":"xlsx","n_sheets":3,"sheets":["AGOSTO","Resumen","menu"],"not_rendered":{"charts":0,"images":8,"macros":1,"external_links":0,"defined_names":4,"comments":1,"pivot_tables":0},"unopened":[],"bounds":{"document_bytes":16777216,"sheet_cells":100000,"rows_first":2000,"rows_last":500,"rows_between":2000,"halvings":0,"cell_chars":16384,"cell_head_chars":4096},"cells_cut":0,"cells_raw":0,"read":"whole","date_system":"1900"}

{"sheet":"AGOSTO","index":0,"n_rows":76,"n_cols":10,"rows_kept":76,"cut":false,"hidden":false,"merged":[[51,7,51,8],[51,9,51,10],[63,1,63,2],[63,3,63,4],[60,2,61,2],[60,4,61,4],[60,8,61,8],[60,10,61,10],[53,1,53,2],[53,3,53,4],[53,7,53,8],[53,9,53,10],[53,5,53,6],[60,6,61,6],[63,5,63,6],[39,7,39,8],[39,9,39,10],[36,4,37,4],[36,8,37,8],[36,10,37,10],[106,0,106,10],[109,0,109,10],[77,0,77,1],[78,0,81,9],[105,0,105,10],[48,8,49,8],[48,10,49,10],[41,1,41,2],[41,3,41,4],[41,5,41,6],[41,7,41,8],[41,9,41,10],[9,3,9,6],[9,8,9,9],[11,0,11,10],[29,3,29,4],[29,7,29,8],[29,9,29,10],[15,1,15,2],[15,3,15,4],[15,5,15,6],[15,7,15,8],[15,9,15,10],[27,1,27,2],[27,3,27,4],[27,7,27,8],[27,9,27,10],[9,1,9,2],[0,3,1,7],[2,0,2,10],[3,0,3,10],[4,0,4,2],[5,1,5,2],[5,3,5,8],[6,1,6,2],[6,3,6,4],[6,6,6,8],[7,0,7,2],[8,0,8,2],[8,3,8,6],[8,8,8,9],[27,5,27,6],[51,1,51,2],[51,3,51,4],[51,5,51,6],[29,5,29,6],[36,6,37,6],[48,2,49,2],[48,4,49,4],[48,6,49,6],[39,1,39,2],[39,3,39,4],[39,5,39,6],[29,1,37,2],[65,5,65,6],[72,6,73,6],[66,3,73,4],[65,1,65,2],[72,2,73,2]]}
[null,null,null,"HAPPY LUNCHES SERVICE SAC \nCOLEGIO SANTA MARIA\nSECUNDARIA"]
[]
["BCP CUENTA CORRIENTE: 194189468-2-000                                                         CODIGO INTERBANCARIO BCP: 002 194 00189468 2000 90           \nBBVA CUENTA CORRIENTE: 0011-0149-0100033241-29                                           CODIGO INTERBANCARIO BBVA: 011 - 149 - 000100033241 - 29  "]
["FAVOR ENVIAR VOUCHER O TRANSFERENCIA ELECTRÓNICA A NUESTRO E-MAIL UNA VEZ REALIZADO EL ABONO EN NUESTRA CUENTA. GRACIAS POR SU COLABORACIÓN."]
[" DATOS DEL PADRE O APODERADO :"]
[null,"NOMBRES Y APELLIDOS:"]
[null,"TELÉFONO:","TELEFONO:",null,null,"CORREO ELECTRÓNICO:"]
["DATOS DEL ALUMNO                           :"]
["NOMBRES :",null,null,null,null,null,null,"GRADO Y SECCIÓN :"]
[null,"APELLIDOS :",null,null,null,null,null,"ALERGIAS :"]
[]
["IMPORTANTE: ES NECESARIO QUE LOS DATOS SOLICITADOS SEAN LLENADOS DE FORMA CORRECTA TANTO DEL TUTOR COMO DEL ALUMNO(A) . ELEGIR UNICAMENTE  LA OPCIÓN  EN LA FECHA  QUE DESEA EL SERVICIO,DE NO NECESITAR EL SERVICIO UN DÍA NO SELECCIONAR NINGUNA OPCIÓN ESE DÍA . YA QUE EL PROGRAMA CALCULARÁ LA CANTIDAD DE ALMUERZOS ELEGIDOS POR ALUMNO ASÍ COMO EL TOTAL A DEPOSITAR.\nEN CADA HOJA ELECTRÓNICA DEBE DE HABER SOLO UN ALUMNO.\nNO RE-ENVIAR SIN HABER GUARDADO EL DOCUMENTO DESPUÉS DE HECHA LA SELECCIÓN.\nCUALQUIER CANCELACION O SUSPENSION DE ALGUN ALMUERZO SE DEBE HACER HASTA 8.30 AM DEL MISMO DIA"]
[]
[]
["Opción","Lunes",null,"Martes",null,"Miércoles",null,"Jueves",null,"Viernes"]
[null,{"$f":"menu!M4","v":"1 DE AGOSTO"},null,{"$f":"menu!N4","v":"2 DE AGOSTO"},null,{"$f":"menu!O4","v":"3 DE AGOSTO"},null,{"$f":"menu!P4","v":"4 DE AGOSTO"},null,{"$f":"menu!Q4","v":"5 DE AGOSTO"}]
[]
["Entrada",{"$f":"menu!B53","v":"PASTEL DE PAPA "},null,{"$f":"menu!D53","v":"ENSALADA DE ESPINACA"},null,{"$f":"menu!F53","v":"CHOCLITO CAPRESSE"},null,{"$f":"menu!H53","v":"PAN AL AJO"},null,{"$f":"menu!J53","v":"TEQUEÑOS CON GUACAMOLE"}]
["A",{"$f":"menu!B54","v":"PAELLA A LA VALENCIANA "},null,{"$f":"menu!D54","v":"GUISO DE CARNE CON ARROZ "},null,{"$f":"menu!F54","v":"TRIGO GUISADO CON QUESO Y POLLITO "},null,{"$f":"menu!H54","v":"SECO DE RES CON ARROZ "},null,{"$f":"menu!J54","v":"SPAGHETTI AL PESTO CON BISTECK "}]
["B",{"$f":"menu!B55","v":"SPAGHETTI EN SALSA DE CARNE "},null,{"$f":"menu!D55","v":"POLLO A LA COCA COLA CON ARROZ "},null,{"$f":"menu!F55","v":"ARROZ CON POLLO "},null,{"$f":"menu!H55","v":"LASAGNA DE CARNE "},null,{"$f":"menu!J55","v":"POLLO A LA MOSTAZA CON ARROZ "}]
["C",{"$f":"menu!B56","v":"POLLO A LA PLANCHA CON ARROZ A LA JARDINERA "},null,{"$f":"menu!D56","v":"POLLO A LA PLANCHA CON PAPAS DUQUEZAS"},null,{"$f":"menu!F56","v":"POLLO A LA PLANCHA CON PURÉ DE PAPITA AMARILLA "},null,{"$f":"menu!H56","v":"POLLO A LA PLANCHA CON PAPAS AL HORNO "},null,{"$f":"menu!J56","v":"POLLO A LA PLANCHA CON VERDURAS Y ARROZ "}]
["D",{"$f":"menu!B57","v":"ENSALADA CÉSAR CON POLLITO A LA PLANCHA "},null,{"$f":"menu!D57","v":"ENSALADA CRIOLLA CON POLLITO A LA PLANCHA "},null,{"$f":"menu!F57","v":"ENSALADA COBB CON PAVITO "},null,{"$f":"menu!H57","v":"ENSALADA ORIENTAL CON POLLITO "},null,{"$f":"menu!J57","v":"ENSALADA DE GARBANZOS CON ATÚN "}]
["E",{"$f":"menu!B58","v":"BISTECK CON PAPITAS"},null,{"$f":"menu!D58","v":"NUGGETS DE POLLO AL HORNO CON LENTEJAS "},null,{"$f":"menu!F58","v":"PIERNITAS AL HORNO CON CAMOTE GLASEADO "},null,{"$f":"menu!H58","v":"POLLO A LA OLLA CON PAPAS AL ROMERO "},null,{"$f":"menu!J58","v":"POLLITO TERIYAKI CON ARROZ PRIMAVERA"}]
["V",{"$f":"menu!B59","v":"PAELLA VEGETARIANA "},null,{"$f":"menu!D59","v":"HAMBURGUESA VEGETARIANA CON ARROZ "},null,{"$f":"menu!F59","v":"SUPER PAPA A LA HUANCAINA "},null,{"$f":"menu!H59","v":"LASAGNA VEGETARIANA "},null,{"$f":"menu!J59","v":"SALTADO ORIENTAL VEGETARIANO"}]
["postre",{"$f":"menu!B60","v":"FRUTA DE ESTACIÓN "},null,{"$f":"menu!D60","v":"MAZAMORRA MORADA"},null,{"$f":"menu!F60","v":"BOMBITAS HL "},null,{"$f":"menu!H60","v":"MUFFIN DE FRUTAS "},null,{"$f":"menu!J60","v":"GELATINA "}]
["refresco",{"$f":"menu!B61","v":"NARANJADA"},null,{"$f":"menu!D61","v":"CHICHA MORADA"},null,{"$f":"menu!F61","v":"LIMONADA"},null,{"$f":"menu!H61","v":"MARACUYÁ "},null,{"$f":"menu!J61","v":"NARANJADA"}]
[]
["Opción",{"$f":"menu!R4","v":"8 DE AGOSTO"},null,{"$f":"menu!S4","v":"9 DE AGOSTO"},null,{"$f":"menu!T4","v":"10 DE AGOSTO"},null,{"$f":"menu!U4","v":"11 DE AGOSTO"},null,{"$f":"menu!V4","v":"12 DE AGOSTO"}]
[]
["Entrada","VACACIONES",null,{"$f":"menu!D63","v":"ENSALADA DE PEPINO "},null,{"$f":"menu!F63","v":"CHOCLITO A LA HUANCAINA"},null,{"$f":"menu!H63","v":"WANTAN CON TAMARINDO "},null,{"$f":"menu!J63","v":"ENSALADA DE VERDURAS"}]
["A",null,null,{"$f":"menu!D64","v":"ESTOFADO DE RES CON ARROZ "},null,{"$f":"menu!F64","v":"GUISO DE CARNE CON ARROZ PRIMAVERA"},null,{"$f":"menu!H64","v":"ARROZ CHAUFA DE POLLO Y CARNE "},null,{"$f":"menu!J64","v":"LOMITO AL JUGO CON SPAGHETTI A LA HUANCAINA "}]
["B",null,null,{"$f":"menu!D65","v":"POLLO A LA MOSTAZA CON ARROZ "},null,{"$f":"menu!F65","v":"FRIJOLES CON GUISITO DE POLLO "},null,{"$f":"menu!H65","v":"CARAPULCRA GUISADA CON ARROZ "},null,{"$f":"menu!J65","v":"PESCADO A LA PLANCHA CON ARROZ Y VERDURAS"}]
["C",null,null,{"$f":"menu!D66","v":"POLLO A LA PLANCHA CON VERDURAS Y ARROZ "},null,{"$f":"menu!F66","v":"POLLO A LA PLANCHA CON PURÉ ROSADO "},null,{"$f":"menu!H66","v":"POLLO A LA PLANCHA CON ARROZ CON VERDURAS"},null,{"$f":"menu!J66","v":"POLLO A LA PLANCHA CON PAPAS DORADAS"}]
["D",null,null,{"$f":"menu!D67","v":"ENSALADA CÉSAR CON POLLO A LA PLANCHA "},null,{"$f":"menu!F67","v":"ENSALADA RUSA CON PAVITA AL HORNO "},null,{"$f":"menu!H67","v":"ENSALADA ITALIANA CON POLLO EN TIRAS"},null,{"$f":"menu!J67","v":"ENSALADA DELICIA CON POLLO A LA PLANCHA "}]
["E",null,null,{"$f":"menu!D68","v":"POLLO AL ROMERO CON ARROZ Y VERDURAS"},null,{"$f":"menu!F68","v":"TORTILLA DE ATÚN CON ARROZ PRIMAVERA"},null,{"$f":"menu!H68","v":"POLLO A LA COCACOLA CON ARROZ PRIMAVERA"},null,{"$f":"menu!J68","v":"POLLO ANTICUCHADO CON ARROZ "}]
["V",null,null,{"$f":"menu!D69","v":"TORTILLA DE COLIFLOR CON ARROZ "},null,{"$f":"menu!F69","v":"SPAGHETTI VEGETARIANO"},null,{"$f":"menu!H69","v":"ARROZ CHAUFA VEGETARIANO "},null,{"$f":"menu!J69","v":"PIZZA DE JAMÓN Y QUESO Y ENSALADITA FRESCA"}]
["postre",null,null,{"$f":"menu!D70","v":"FRUTA DE ESTACIÓN "},null,{"$f":"menu!F70","v":"GELATINA CON FLAN "},null,{"$f":"menu!H70","v":"ARROZ CON LECHE"},null,{"$f":"menu!J70","v":"QUEQUE DE FRUTAS"}]
["refresco",null,null,{"$f":"menu!D71","v":"CHICHA MORADA"},null,{"$f":"menu!F71","v":"NARANJADA"},null,{"$f":"menu!H71","v":"LIMONADA "},null,{"$f":"menu!J71","v":"MARACUYÁ "}]
[]
["Opción",{"$f":"menu!W4","v":"15 DE AGOSTO"},null,{"$f":"menu!X4","v":"16 DE AGOSTO"},null,{"$f":"menu!Y4","v":"17 DE AGOSTO"},null,{"$f":"menu!Z4","v":"18 DE AGOSTO"},null,{"$f":"menu!AA4","v":"19 DE AGOSTO"}]
[]
["Entrada",{"$f":"menu!B73","v":"TEQUEÑOS CON GUACAMOLE"},null,{"$f":"menu!D73","v":"PAPA A LA HUANCAINA"},null,{"$f":"menu!F73","v":"SOUFFLÉ DE VERDURAS"},null,{"$f":"menu!H73","v":"MINI QUESADILLA"},null,{"$f":"menu!J73","v":"PAN AL AJO"}]
["A",{"$f":"menu!B74","v":"POLLO AL HORNO CON PAPAS AL HORNO"},null,{"$f":"menu!D74","v":"OLLUQUITOS GUISADOS CON RES "},null,{"$f":"menu!F74","v":"POLLO A LA OLLA CON ARROZ CON VERDURAS"},null,{"$f":"menu!H74","v":"CAU CAU DE POLLO CON ARROZ "},null,{"$f":"menu!J74","v":"POLLO SALTADO CON ARROZ"}]
["B",{"$f":"menu!B75","v":"LOMO SALTADO CON ARROZ  "},null,{"$f":"menu!D75","v":"ARROZ CON POLLO "},null,{"$f":"menu!F75","v":"MILANESA DE POLLO CON ARROZ PRIMAVERA"},null,{"$f":"menu!H75","v":"GUISO DE CARNE CON ARROZ "},null,{"$f":"menu!J75","v":"MILANESA DE PESCADO CON ARROZ CON VERDURAS"}]
["C",{"$f":"menu!B76","v":"POLLO A LA PLANCHA CON ENSALADA CALIENTE "},null,{"$f":"menu!D76","v":"POLLO A LA PLANCHA CON PAPITAS"},null,{"$f":"menu!F76","v":"POLLO A LA PLANCHA CON ARROZ A LA JARDINERA"},null,{"$f":"menu!H76","v":"POLLO A LA PLANCHA CON VERDURAS"},null,{"$f":"menu!J76","v":"POLLO A LA PLANCHA CON YUQUITAS DORADAS"}]
["D",{"$f":"menu!B77","v":"ENSALADA CON POLLO A LA PARRILLA "},null,{"$f":"menu!D77","v":"ENSALADA DE ATÚN "},null,{"$f":"menu!F77","v":"ENSALADA DE CAIGUA CON PAVITA"},null,{"$f":"menu!H77","v":"ENSALADA DE QUINUA CON POLLO EN CUBOS"},null,{"$f":"menu!J77","v":"ENSALADA CÉSAR CON POLLITO A LA PLANCHA "}]
["E",{"$f":"menu!B78","v":"MACARRONES CON QUESO Y POLLITO EN DADOS"},null,{"$f":"menu!D78","v":"NUGGETS CON PURÉ DE PAPITA AMARILLA "},null,{"$f":"menu!F78","v":"PIZZA CLÁSICA CON ENSALADITA FRESCA"},null,{"$f":"menu!H78","v":"CHICKEN FINGERS CON VERDURAS"},null,{"$f":"menu!J78","v":"ARROZ CHAUFA CON POLLITO CHI JAU KAY"}]
["V",{"$f":"menu!B79","v":"SALTADO VEGETARIANO "},null,{"$f":"menu!D79","v":"HAMBURGUESA VEGETARIANA AL PLATO "},null,{"$f":"menu!F79","v":"ARROZ TAPADO VEGETARIANO"},null,{"$f":"menu!H79","v":"ARROZ ÁRABE CON GUISO VEGETARIANO"},null,{"$f":"menu!J79","v":"CANUTOS CAPRESSE"}]
["postre",{"$f":"menu!B80","v":"MINI PYE DE MANZANA "},null,{"$f":"menu!D80","v":"FRUTA DE ESTACIÓN "},null,{"$f":"menu!F80","v":"FLAN  "},null,{"$f":"menu!H80","v":"GELATINA "},null,{"$f":"menu!J80","v":"MINI BROWNIE"}]
["refresco",{"$f":"menu!B81","v":"LIMONADA"},null,{"$f":"menu!D81","v":"CHICHA MORADA"},null,{"$f":"menu!F81","v":"NARANJADA"},null,{"$f":"menu!H81","v":"MARACUYÁ "},null,{"$f":"menu!J81","v":"AGUA MINERAL "}]
[]
["Opción",{"$f":"menu!AB4","v":"22 DE AGOSTO"},null,{"$f":"menu!AC4","v":"23 DE AGOSTO"},null,{"$f":"menu!AD4","v":"24 DE AGOSTO"},null,{"$f":"menu!AE4","v":"25 DE AGOSTO"},null,{"$f":"menu!AF4","v":"26 DE AGOSTO"}]
[]
["Entrada",{"$f":"menu!B83","v":"ENSALADA BRUSCHETTA"},null,{"$f":"menu!D83","v":"HUEVITO A LA RUSA"},null,{"$f":"menu!F83","v":"ENSALADA CAPRESSE"},null,{"$f":"menu!H83","v":"ENSALADA FRESCA"},null,{"$f":"menu!J83","v":"PAN AL AJO "}]
["A",{"$f":"menu!B84","v":"TALLARINES SALTADOS ORIENTALES CON RES"},null,{"$f":"menu!D84","v":"CAIGUA RELLENA DE RES CON ARROZ "},null,{"$f":"menu!F84","v":"TACU TACU CON SECO DE RES "},null,{"$f":"menu!H84","v":"ESCABECHE DE POLLO CON ARROZ "},null,{"$f":"menu!J84","v":"COLIFLOR SALTADA CON ARROZ "}]
["B",{"$f":"menu!B85","v":"LENTEJITAS GUISADAS CON POLLO Y ARROZ PRIMAVERA"},null,{"$f":"menu!D85","v":"ARROZ CHAUFA DE POLLO Y CARNE "},null,{"$f":"menu!F85","v":"POLLO A LA OLLA CON ARROZ "},null,{"$f":"menu!H85","v":"SECO A LA NORTEÑA CON ARROZ BLANCO"},null,{"$f":"menu!J85","v":"SPAGHETTI EN SALSA ROJA CON POLLO"}]
["C",{"$f":"menu!B86","v":"POLLO A LA PLANCHA CON ARROZ Y VERDURAS"},null,{"$f":"menu!D86","v":"POLLO A LA PLANCHA CON VERDURAS"},null,{"$f":"menu!F86","v":"POLLO A LA PLANCHA CON ARROZ "},null,{"$f":"menu!H86","v":"POLLO A LA PLANCHA CON PAPAS DORADAS"},null,{"$f":"menu!J86","v":"POLLO A LA PLANCHA CON ARROZ PRIMAVERA"}]
["D",{"$f":"menu!B87","v":"ENSALADA CÉSAR CON POLLO "},null,{"$f":"menu!D87","v":"ENSALADA MIXTA CON POLLO A LA PLANCHA "},null,{"$f":"menu!F87","v":"ENSALADA DE ESPINACA CON POLLO EN TIRAS"},null,{"$f":"menu!H87","v":"ENSALADA ORIENTAL CON POLLO "},null,{"$f":"menu!J87","v":"ENSALADA RUSA CON PAVITA"}]
["E",{"$f":"menu!B88","v":"TORTILLAS DE ATÚN CON ARROZ Y VERDURAS"},null,{"$f":"menu!D88","v":"ASADO CON PURÉ "},null,{"$f":"menu!F88","v":"POLLO AL HORNO CON PURÉ "},null,{"$f":"menu!H88","v":"MILANESA DE PESCADO CON ARROZ Y VERDURAS"},null,{"$f":"menu!J88","v":"MILANESA DE POLLO CON PAPITAS"}]
["V",{"$f":"menu!B89","v":"TORTILLA DE VERDURAS CON SOYA Y ARROZ "},null,{"$f":"menu!D89","v":"CAIGUA VEGETARIANA CON ARROZ"},null,{"$f":"menu!F89","v":"SECO VEGETARIANO CON ARROZ "},null,{"$f":"menu!H89","v":"ARROZ CHAUFA VEGETARIANO"},null,{"$f":"menu!J89","v":"SALTADO DE BRÓCOLI CON SOYA Y ARROZ"}]
["postre",{"$f":"menu!B90","v":"FRUTA DE ESTACIÓN "},null,{"$f":"menu!D90","v":"GALLETAS NATURALES"},null,{"$f":"menu!F90","v":"GELATINA"},null,{"$f":"menu!H90","v":"FRUTA DE ESTACIÓN"},null,{"$f":"menu!J90","v":"GELATINA CON FLAN"}]
["refresco",{"$f":"menu!B91","v":"LIMONADA"},null,{"$f":"menu!D91","v":"CHICHA MORADA"},null,{"$f":"menu!F91","v":"NARANJADA"},null,{"$f":"menu!H91","v":"AGUA MINERAL "},null,{"$f":"menu!J91","v":"MARACUYÁ"}]
[]
["Opción",{"$f":"menu!AG4","v":"29 DE AGOSTO"},null,{"$f":"menu!AH4","v":"30 DE AGOSTO"},null,{"$f":"menu!AI4","v":"31 DE AGOSTO"}]
[]
["Entrada",{"$f":"menu!B93","v":"ENSALADA RUSA (SIN PAPA)"},null,null,null,{"$f":"menu!F93","v":"ENSALADA DE COL"}]
["A",{"$f":"menu!B94","v":"POLLO SALTADO CON ARROZ"},null,"FERIADO",null,{"$f":"menu!F94","v":"CAIGUA RELLENA DE RES CON ARROZ BLANCO"}]
["B",{"$f":"menu!B95","v":"AJÍ DE GALLINA CON ARROZ "},null,null,null,{"$f":"menu!F95","v":"POLLO AL SILLAO CON ARROZ CON VERDURAS"}]
["C",{"$f":"menu!B96","v":"POLLO A LA PLANCHA CON SPAGUETTI A LO ALFREDO"},null,null,null,{"$f":"menu!F96","v":"POLLO A LA PLANCHA CON ARROZ Y VERDURAS"}]
["D",{"$f":"menu!B97","v":"ENSALADA ORIENTAL CON POLLITO A LA PLANCHA"},null,null,null,{"$f":"menu!F97","v":"ENSALADA DELICIA CON POLLO "}]
["E",{"$f":"menu!B98","v":"PIERNITAS DE POLLO CON PAPITAS"},null,null,null,{"$f":"menu!F98","v":"LENTEJITAS GUISADAS CON PECHIGUITAS DE POLLO"}]
["V",{"$f":"menu!B99","v":"SALTADO DE VERDURAS CON SOYA"},null,null,null,{"$f":"menu!F99","v":"CAIGUA VEGETARIANA CON ARROZ"}]
["postre",{"$f":"menu!B100","v":"FRUTA DE ESTACIÓN"},null,null,null,{"$f":"menu!F100","v":"FRUTA DE ESTACIÓN "}]
["refresco",{"$f":"menu!B101","v":"MARACUYÁ"},null,null,null,{"$f":"menu!F101","v":"LIMONADA"}]
[]
[null,null,null,null,null,null,null,"Limpiar  Pedidos"]

{"sheet":"Resumen","index":1,"n_rows":29,"n_cols":36,"rows_kept":29,"cut":false,"hidden":false,"merged":[[0,0,1,29],[17,1,17,29],[18,1,18,29],[8,0,10,27],[13,0,16,29],[12,0,12,29],[5,28,7,28],[5,0,7,0],[5,1,7,1],[29,11,30,29],[24,0,24,29],[25,0,25,29],[28,0,28,29],[26,11,27,29]]}
["No se aceptarán nuevos pedidos ni cambios de opción con menos de 03 días (72 horas) de anticipación, excepto dietas por enfermedad"]
[]
["NOMBRES Y APELLIDOS","SECCION Y GRADO",null,null,null,null,null,"VACACIONES","9 DE AGOSTO","10 DE AGOSTO","11 DE AGOSTO","12 DE AGOSTO","15 DE AGOSTO","16 DE AGOSTO","17 DE AGOSTO","18 DE AGOSTO","19 DE AGOSTO","22 DE AGOSTO","23 DE AGOSTO","24 DE AGOSTO","25 DE AGOSTO","26 DE AGOSTO","29 DE AGOSTO","FERIADO","31 DE AGOSTO",null,null,"Número de Almuerzos","COSTO DIARIO ","Total Soles"]
["2DO MES"]
["1ER MES"]
[{"$f":"CONCATENATE(AGOSTO!D9,\" \",AGOSTO!D10)","v":" "},{"$f":"AGOSTO!I9","v":0},null,null,null,null,{"$f":"IF(G5=1,\"A\",IF(G5=2,\"B\",IF(G5=3,\"C\",IF(G5=4,\"D\",IF(G5=5,\"E\",IF(G5=6,\"V\",\"\"))))))","v":""},"",{"$f":"IF(I5=1,\"A\",IF(I5=2,\"B\",IF(I5=3,\"C\",IF(I5=4,\"D\",IF(I5=5,\"E\",IF(I5=6,\"V\",\"\"))))))","v":""},{"$f":"IF(J5=1,\"A\",IF(J5=2,\"B\",IF(J5=3,\"C\",IF(J5=4,\"D\",IF(J5=5,\"E\",IF(J5=6,\"V\",\"\"))))))","v":""},"","","","","","","","","","","","",null,null,null,null,null,{"$f":"COUNTA(C5:AA5)","v":0},13,{"$f":"AB6*AC6","v":0},{"$f":"COUNTIF(C6:Z6,\"a\")","v":0},{"$f":"COUNTIF(C6:Z6,\"z\")","v":0},{"$f":"COUNTIF(C6:Z6,\"b\")","v":0},{"$f":"COUNTIF(C6:Z6,\"c\")","v":0},{"$f":"COUNTIF(C6:Z6,\"d\")","v":0},{"$f":"COUNTIF(C6:Z6,\"e\")","v":0}]
[null,null,"VACACIONES",null,null,null,null,null,"9 DE AGOSTO","10 DE AGOSTO","11 DE AGOSTO","12 DE AGOSTO","15 DE AGOSTO","16 DE AGOSTO","17 DE AGOSTO","18 DE AGOSTO","19 DE AGOSTO","22 DE AGOSTO","23 DE AGOSTO","24 DE AGOSTO","25 DE AGOSTO","26 DE AGOSTO","29 DE AGOSTO","FERIADO","31 DE AGOSTO"]
[null,null,null,null,null,null,null,null,{"$f":"IF(I4=1,\"A\",IF(I4=2,\"B\",IF(I4=3,\"C\",IF(I4=4,\"D\",IF(I4=5,\"E\",IF(I4=6,\"V\",\"\"))))))","v":""},"","","","","","","","","","","","","","",null,"",null,null,{"$f":"COUNTA(C4:AA4)","v":0},null,{"$f":"AB8*AC6","v":0}]
["RECUERDE QUE DESPUES DE ENVIAR SU PEDIDO (E-MAIL) TIENE 05 DIAS UTILES PARA ENVIARNOS SU VOUCHER O TRANSFERENCIA DE PAGO MEDIANTE E-MAIL.\nLA MORA SE COBRA SOLO  DESPUES DEL 5TO DIA DE SERVICIO  EN CASO USTED NO REALICE EL ABONO.",null,null,null,null,null,null,null,null,null,null,null,null,null,null,null,null,null,null,null,null,null,null,null,null,null,null,null,"TOTAL ",{"$f":"SUM(AD6:AD8)","v":0}]
[null,null,null,null,null,null,null,null,null,null,null,null,null,null,null,null,null,null,null,null,null,null,null,null,null,null,null,null,null,{"$f":"12","v":12}]
[null,null,null,null,null,null,null,null,null,null,null,null,null,null,null,null,null,null,null,null,null,null,null,null,null,null,null,null,"PAGO CON MORA "]
[]
["RESUMEN DE PEDIDO TOTAL:"]
["          CORREO ELECTRÓNICO:\n lunch-sm@happylunchesservice.com"]
[]
[]
[]
[]
[]
[]
[]
[]
[]
[]
["HORARIO DE ATENCIÓN AL CLIENTE: TELÉFONOS FIJOS - LUNES A VIERNES DE 7AM - 4PM    CELULARES: 7AM - 4PM"]
["Teléfonos:  445-8009  ó  250-8990         Maite Valdivia: 922-126-906"]
[]
[]
["Encuentre el menú en :    www.happylunchesservice.com"]

{"sheet":"menu","index":2,"n_rows":101,"n_cols":37,"rows_kept":101,"cut":false,"hidden":true,"merged":[[91,0,91,1],[91,2,91,3],[91,4,91,5],[91,6,91,7],[91,8,91,9],[81,0,81,1],[81,2,81,3],[81,4,81,5],[81,6,81,7],[81,8,81,9],[71,0,71,1],[71,2,71,3],[71,4,71,5],[71,6,71,7],[71,8,71,9],[51,0,51,1],[51,2,51,3],[51,4,51,5],[51,6,51,7],[51,8,51,9],[61,0,61,1],[61,2,61,3],[61,4,61,5],[61,6,61,7],[61,8,61,9],[41,8,41,9],[11,8,11,9],[11,0,11,1],[41,0,41,1],[41,4,41,5],[41,6,41,7],[41,2,41,3],[31,4,31,5],[31,6,31,7],[0,0,0,9],[21,4,21,5],[21,6,21,7],[21,8,21,9],[31,2,31,3],[31,8,31,9],[1,2,1,3],[21,0,21,1],[31,0,31,1],[11,6,11,7],[1,4,1,5],[1,6,1,7],[1,8,1,9],[11,2,11,3],[11,4,11,5],[21,2,21,3]]}
[]
["OPCIONES",null,null,null,null,null,null,null,"1 DE JULIO",null,null,"JULIO",null,null,null,null,"1 DE JULIO","4 DE JULIO","5 DE JULIO","6 DE JULIO","7 DE JULIO","8 DE JULIO","11 DE JULIO","12 DE JULIO","13 DE JULIO","14 DE JULIO","15 DE JULIO","18 DE JULIO","19 DE JULIO","20 DE JULIO","21 DE JULIO","22 DE JULIO","25 DE JULIO","26 DE JULIO","27 DE JULIO","28 DE JULIO","29 DE JULIO"]
["Entrada",null,null,null,null,null,null,null,"Entrada","ENSALADA RUSA (SIN PAPA)"]
["A",null,null,null,null,null,null,null,"A","POLLO SALTADO CON ARROZ",null,"AGOSTO","1 DE AGOSTO","2 DE AGOSTO","3 DE AGOSTO","4 DE AGOSTO","5 DE AGOSTO","8 DE AGOSTO","9 DE AGOSTO","10 DE AGOSTO","11 DE AGOSTO","12 DE AGOSTO","15 DE AGOSTO","16 DE AGOSTO","17 DE AGOSTO","18 DE AGOSTO","19 DE AGOSTO","22 DE AGOSTO","23 DE AGOSTO","24 DE AGOSTO","25 DE AGOSTO","26 DE AGOSTO","29 DE AGOSTO","30 DE AGOSTO","31 DE AGOSTO"]
["B",null,null,null,null,null,null,null,"B","AJÍ DE GALLINA CON ARROZ "]
["C",null,null,null,null,null,null,null,"C","POLLO A LA PLANCHA CON SPAGUETTI A LO ALFREDO"]
["D",null,null,null,null,null,null,null,"D","ENSALADA ORIENTAL CON POLLITO A LA PLANCHA"]
["E",null,null,null,null,null,null,null,"E","PIERNITAS DE POLLO CON PAPITAS"]
["V",null,null,null,null,null,null,null,"V","SALTADO DE VERDURAS CON SOYA"]
["postre",null,null,null,null,null,null,null,"postre","FRUTA DE ESTACIÓN"]
["refresco",null,null,null,null,null,null,null,"refresco","MARACUYÁ"]
["4 DE JULIO",null,"5 DE JULIO",null,"6 DE JULIO",null,"7 DE JULIO",null,"8 DE JULIO"]
["Entrada","ENSALADA DE VERDURAS","Entrada","ENSALADA CAPRESSE","Entrada","ENSALADA FRESCA","Entrada","ENSALADA DE PEPINO","Entrada","ENSALADA DE TOMATE"]
["A","ESTOFADO DE POLLO","A","ARROZ A LA JARDINERA CON CARNE GUISADA","A","MILANESA DE PESCADO CON ARROZ CON VERDURAS ","A","POLLO ANTICUCHADO CON CHOCLO ","A","CAU CAU DE POLLO CON ARROZ "]
["B","LOCRO DE ZAPALLO CON POLLITO EN CUBOS","B","SPAGHETTI A LA BOLOGNESA ","B","ARROZ CHAUFA FUSIÓN CON POLLO ","B","ARROZ TAPADO CON PLATANITO A LA PLANCHA ","B","FRIJOLES CANARIO CON GUISITO DE RES"]
["C","FILETE DE POLLO A LA PLANCHA CON ARROZ PRIMAVERA","C","POLLO A LA PLANCHA CON PURÉ DE PAPITA AMARILLA ","C","POLLO A LA PLANCHA CON PAPITAS","C","POLLO A LA PLANCHA CON ARROZ A LA JARDINERA ","C","POLLO A LA PLANCHA CON SPAGUETTI A LO ALFREDO "]
["D","ENSALADA RUSA CON POLLO A LA PLANCHA ","D","WRAP DE POLLO Y PALTA ","D","ENSALADA ORIENTAL CON POLLITO A LA PLANCHA ","D","ENSALADA DE ATÚN ","D","ENSALADA CON MEDALLON DE PAVITA "]
["E","POLLO TERIYAKI CON ARROZ PRIMAVERA","E","BISTECK CON CAMOTITOS ","E","CHICKEN FINGERS CON PURÉ DE PAPITA AMARILLA","E","POLLITO AL HORNO CON PAPITAS DUQUESAS ","E","FISH FINGERS CON CAMOTE GLASEADO"]
["V","LENTEJITAS GUISADAS / HUEVITO A LA PLANCHA Y ARROZ ","V","TORTILLA DE COLIFLOR CON ARROZ PRIMAVERA","V","ARVEJITAS VERDES CON HUEVITO A LA PLANCHA / ARROZ ","V","MILANESA VEGETARIANA CON PAPITAS ","V","CAUCAU VEGETARIANO CON ARROZ "]
["postre","GALLETAS NATURALES","postre","FRUTA DE ESTACIÓN ","postre","GALLETAS NATURALES","postre","FLAN CON GELATINA","postre","MINI ALFAJOR"]
["refresco","LIMONADA","refresco","CHICHA MORADA","refresco","LIMONADA","refresco","NARANJADA","refresco","LIMONADA"]
["11 DE JULIO",null,"12 DE JULIO",null,"13 DE JULIO",null,"14 DE JULIO",null,"15 DE JULIO"]
["Entrada","ENSALADA FRESCA","Entrada","BOMBITAS A LA DIABLA ","Entrada","SOUFFLÉ DE VERDURAS","Entrada","ENSALADA DE PALTA","Entrada","ENSALADA FRESCA"]
["A","MILANESA DE PESCADO CON ARROZ CON VERDURAS ","A","POLLO AL SILLAO CON ARROZ PRIMAVERA","A","QUINOA GUISADA CON POLLITO / BRÓCOLI","A","CORDON BLEU DE POLLO CON ARROZ","A","SECO DE RES CON ARROZ "]
["B","ARROZ CHAUFA FUSIÓN CON POLLO ","B","PALLARES GUISADOS CON RES / ARROZ","B","TALLARIN SALTADO TIPO ORIENTAL CON RES","B","CARAPULCRA GUISADA CON RES","B","GUISO DE POLLO CON ARROZ "]
["C","POLLO A LA PLANCHA CON PAPITAS","C","POLLO A LA PLANCHA CON PAPAS DUQUESAS","C","POLLO A LA PLANCHA CON MACARRONES Y QUESO","C","POLLO A LA PLANCHA CON PURÉ DE PAPITA AMARILLA","C","LENTEJITAS GUISADAS CON POLLO A LA PLANCHA "]
["D","ENSALADA ORIENTAL CON POLLITO A LA PLANCHA ","D","ENSALADA CRIOLLA CON POLLO A LA PLANCHA ","D","ENSALADA DE FIDEOS CON POLLO EN TIRAS","D","PALTA RELLENA CON POLLO MECHADO ","D","ENSALADA BRUSCHETTA CON PAVITA"]
["E","CHICKEN FINGERS CON PURÉ DE PAPITA AMARILLA","E","NUGGETS DE POLLO CON ARROZ PRIMAVERA","E","HAMBURGUESA CASERA CON PAPITAS","E","PIERNITAS CON YUQUITAS","E","PECHUGA BBQ CON ZANAHORIAS Y ARROZ"]
["V","ARVEJITAS VERDES CON HUEVITO A LA PLANCHA / ARROZ ","V","CAUSA TRIPLE VEGETARIANA","V","SALTADO VEGETARIANO CON ARROZ","V","TALLARIN SALTADO VEGETARIANO","V","FILETE VEGETARIANO CON SALSA DE VERDURAS Y ARROZ"]
["postre","GALLETAS NATURALES","postre","MINI PIONONO CON MANJAR","postre","GELATINA ","postre","FRUTA DE ESTACIÓN ","postre","MINI PYE DE MANZANA"]
["refresco","LIMONADA","refresco","CHICHA MORADA","refresco","LIMONADA","refresco","MARACUYÁ ","refresco","NARANJADA"]
["18 DE JULIO",null,"19 DE JULIO",null,"20 DE JULIO",null,"21 DE JULIO",null,"22 DE JULIO"]
["Entrada","PASTEL DE PAPA ","Entrada","ENSALADA DE ESPINACA","Entrada","CHOCLITO CAPRESSE","Entrada","PAN AL AJO","Entrada","TEQUEÑOS CON GUACAMOLE"]
["A","PAELLA A LA VALENCIANA ","A","GUISO DE CARNE CON ARROZ ","A","TRIGO GUISADO CON QUESO Y POLLITO ","A","SECO DE RES CON ARROZ ","A","SPAGHETTI AL PESTO CON BISTECK "]
["B","SPAGHETTI EN SALSA DE CARNE ","B","POLLO A LA COCA COLA CON ARROZ ","B","ARROZ CON POLLO ","B","LASAGNA DE CARNE ","B","POLLO A LA MOSTAZA CON ARROZ "]
["C","POLLO A LA PLANCHA CON ARROZ A LA JARDINERA ","C","POLLO A LA PLANCHA CON PAPAS DUQUEZAS","C","POLLO A LA PLANCHA CON PURÉ DE PAPITA AMARILLA ","C","POLLO A LA PLANCHA CON PAPAS AL HORNO ","C","POLLO A LA PLANCHA CON VERDURAS Y ARROZ "]
["D","ENSALADA CÉSAR CON POLLITO A LA PLANCHA ","D","ENSALADA CRIOLLA CON POLLITO A LA PLANCHA ","D","ENSALADA COBB CON PAVITO ","D","ENSALADA ORIENTAL CON POLLITO ","D","ENSALADA DE GARBANZOS CON ATÚN "]
["E","BISTECK CON PAPITAS","E","NUGGETS DE POLLO AL HORNO CON LENTEJAS ","E","PIERNITAS AL HORNO CON CAMOTE GLASEADO ","E","POLLO A LA OLLA CON PAPAS AL ROMERO ","E","POLLITO TERIYAKI CON ARROZ PRIMAVERA"]
["V","PAELLA VEGETARIANA ","V","HAMBURGUESA VEGETARIANA CON ARROZ ","V","SUPER PAPA A LA HUANCAINA ","V","LASAGNA VEGETARIANA ","V","SALTADO ORIENTAL VEGETARIANO"]
["postre","FRUTA DE ESTACIÓN ","postre","MAZAMORRA MORADA","postre","BOMBITAS HL ","postre","MUFFIN DE FRUTAS ","postre","GELATINA "]
["refresco","NARANJADA","refresco","CHICHA MORADA","refresco","LIMONADA","refresco","MARACUYÁ ","refresco","NARANJADA"]
["25 DE JULIO",null,"26 DE JULIO",null,"27 DE JULIO",null,"28 DE JULIO",null,"29 DE JULIO"]
["Entrada",null,"Entrada",null,"Entrada",null,"Entrada",null,"Entrada"]
["A",null,"A",null,"A",null,"A",null,"A"]
["B",null,"B",null,"B",null,"B",null,"B"]
["C",null,"C",null,"C",null,"C",null,"C"]
["D",null,"D",null,"D",null,"D",null,"D"]
["E",null,"E",null,"E",null,"E",null,"E"]
["V",null,"V",null,"V",null,"V",null,"V"]
["postre",null,"postre",null,"postre",null,"postre",null,"postre"]
["refresco",null,"refresco",null,"refresco",null,"refresco",null,"refresco"]
["1 DE AGOSTO",null,"2 DE AGOSTO",null,"3 DE AGOSTO",null,"4 DE AGOSTO",null,"5 DE AGOSTO"]
["Entrada","PASTEL DE PAPA ","Entrada","ENSALADA DE ESPINACA","Entrada","CHOCLITO CAPRESSE","Entrada","PAN AL AJO","Entrada","TEQUEÑOS CON GUACAMOLE"]
["A","PAELLA A LA VALENCIANA ","A","GUISO DE CARNE CON ARROZ ","A","TRIGO GUISADO CON QUESO Y POLLITO ","A","SECO DE RES CON ARROZ ","A","SPAGHETTI AL PESTO CON BISTECK "]
["B","SPAGHETTI EN SALSA DE CARNE ","B","POLLO A LA COCA COLA CON ARROZ ","B","ARROZ CON POLLO ","B","LASAGNA DE CARNE ","B","POLLO A LA MOSTAZA CON ARROZ "]
["C","POLLO A LA PLANCHA CON ARROZ A LA JARDINERA ","C","POLLO A LA PLANCHA CON PAPAS DUQUEZAS","C","POLLO A LA PLANCHA CON PURÉ DE PAPITA AMARILLA ","C","POLLO A LA PLANCHA CON PAPAS AL HORNO ","C","POLLO A LA PLANCHA CON VERDURAS Y ARROZ "]
["D","ENSALADA CÉSAR CON POLLITO A LA PLANCHA ","D","ENSALADA CRIOLLA CON POLLITO A LA PLANCHA ","D","ENSALADA COBB CON PAVITO ","D","ENSALADA ORIENTAL CON POLLITO ","D","ENSALADA DE GARBANZOS CON ATÚN "]
["E","BISTECK CON PAPITAS","E","NUGGETS DE POLLO AL HORNO CON LENTEJAS ","E","PIERNITAS AL HORNO CON CAMOTE GLASEADO ","E","POLLO A LA OLLA CON PAPAS AL ROMERO ","E","POLLITO TERIYAKI CON ARROZ PRIMAVERA"]
["V","PAELLA VEGETARIANA ","V","HAMBURGUESA VEGETARIANA CON ARROZ ","V","SUPER PAPA A LA HUANCAINA ","V","LASAGNA VEGETARIANA ","V","SALTADO ORIENTAL VEGETARIANO"]
["postre","FRUTA DE ESTACIÓN ","postre","MAZAMORRA MORADA","postre","BOMBITAS HL ","postre","MUFFIN DE FRUTAS ","postre","GELATINA "]
["refresco","NARANJADA","refresco","CHICHA MORADA","refresco","LIMONADA","refresco","MARACUYÁ ","refresco","NARANJADA"]
["8 DE AGOSTO",null,"9 DE AGOSTO",null,"10 DE AGOSTO",null,"11 DE AGOSTO",null,"12 DE AGOSTO"]
["Entrada","ENSALADA FRESCA","Entrada","ENSALADA DE PEPINO ","Entrada","CHOCLITO A LA HUANCAINA","Entrada","WANTAN CON TAMARINDO ","Entrada","ENSALADA DE VERDURAS"]
["A","POLLO ANTICUCHADO  CON ARROZ ","A","ESTOFADO DE RES CON ARROZ ","A","GUISO DE CARNE CON ARROZ PRIMAVERA","A","ARROZ CHAUFA DE POLLO Y CARNE ","A","LOMITO AL JUGO CON SPAGHETTI A LA HUANCAINA "]
["B","ARROZ A LA JARDINERA CON GUISITO DE RES ","B","POLLO A LA MOSTAZA CON ARROZ ","B","FRIJOLES CON GUISITO DE POLLO ","B","CARAPULCRA GUISADA CON ARROZ ","B","PESCADO A LA PLANCHA CON ARROZ Y VERDURAS"]
["C","POLLO A LA PLANCHA CON PURÉ DE ESPINACAS","C","POLLO A LA PLANCHA CON VERDURAS Y ARROZ ","C","POLLO A LA PLANCHA CON PURÉ ROSADO ","C","POLLO A LA PLANCHA CON ARROZ CON VERDURAS","C","POLLO A LA PLANCHA CON PAPAS DORADAS"]
["D","ENSALADA CAPRESSE CON POLLITO ","D","ENSALADA CÉSAR CON POLLO A LA PLANCHA ","D","ENSALADA RUSA CON PAVITA AL HORNO ","D","ENSALADA ITALIANA CON POLLO EN TIRAS","D","ENSALADA DELICIA CON POLLO A LA PLANCHA "]
["E","POLLO AL SILLAO CON ARROZ CON VERDURAS","E","POLLO AL ROMERO CON ARROZ Y VERDURAS","E","TORTILLA DE ATÚN CON ARROZ PRIMAVERA","E","POLLO A LA COCACOLA CON ARROZ PRIMAVERA","E","POLLO ANTICUCHADO CON ARROZ "]
["V","ARROZ CRIOLLO VEGETARIANO","V","TORTILLA DE COLIFLOR CON ARROZ ","V","SPAGHETTI VEGETARIANO","V","ARROZ CHAUFA VEGETARIANO ","V","PIZZA DE JAMÓN Y QUESO Y ENSALADITA FRESCA"]
["postre","MINI PYE DE MANZANA ","postre","FRUTA DE ESTACIÓN ","postre","GELATINA CON FLAN ","postre","ARROZ CON LECHE","postre","QUEQUE DE FRUTAS"]
["refresco","LIMONADA","refresco","CHICHA MORADA","refresco","NARANJADA","refresco","LIMONADA ","refresco","MARACUYÁ "]
["15 DE AGOSTO",null,"16 DE AGOSTO",null,"17 DE AGOSTO",null,"18 DE AGOSTO",null,"19 DE AGOSTO"]
["Entrada","TEQUEÑOS CON GUACAMOLE","Entrada","PAPA A LA HUANCAINA","Entrada","SOUFFLÉ DE VERDURAS","Entrada","MINI QUESADILLA","Entrada","PAN AL AJO"]
["A","POLLO AL HORNO CON PAPAS AL HORNO","A","OLLUQUITOS GUISADOS CON RES ","A","POLLO A LA OLLA CON ARROZ CON VERDURAS","A","CAU CAU DE POLLO CON ARROZ ","A","POLLO SALTADO CON ARROZ"]
["B","LOMO SALTADO CON ARROZ  ","B","ARROZ CON POLLO ","B","MILANESA DE POLLO CON ARROZ PRIMAVERA","B","GUISO DE CARNE CON ARROZ ","B","MILANESA DE PESCADO CON ARROZ CON VERDURAS"]
["C","POLLO A LA PLANCHA CON ENSALADA CALIENTE ","C","POLLO A LA PLANCHA CON PAPITAS","C","POLLO A LA PLANCHA CON ARROZ A LA JARDINERA","C","POLLO A LA PLANCHA CON VERDURAS","C","POLLO A LA PLANCHA CON YUQUITAS DORADAS"]
["D","ENSALADA CON POLLO A LA PARRILLA ","D","ENSALADA DE ATÚN ","D","ENSALADA DE CAIGUA CON PAVITA","D","ENSALADA DE QUINUA CON POLLO EN CUBOS","D","ENSALADA CÉSAR CON POLLITO A LA PLANCHA "]
["E","MACARRONES CON QUESO Y POLLITO EN DADOS","E","NUGGETS CON PURÉ DE PAPITA AMARILLA ","E","PIZZA CLÁSICA CON ENSALADITA FRESCA","E","CHICKEN FINGERS CON VERDURAS","E","ARROZ CHAUFA CON POLLITO CHI JAU KAY"]
["V","SALTADO VEGETARIANO ","V","HAMBURGUESA VEGETARIANA AL PLATO ","V","ARROZ TAPADO VEGETARIANO","V","ARROZ ÁRABE CON GUISO VEGETARIANO","V","CANUTOS CAPRESSE"]
["postre","MINI PYE DE MANZANA ","postre","FRUTA DE ESTACIÓN ","postre","FLAN  ","postre","GELATINA ","postre","MINI BROWNIE"]
["refresco","LIMONADA","refresco","CHICHA MORADA","refresco","NARANJADA","refresco","MARACUYÁ ","refresco","AGUA MINERAL "]
["22 DE AGOSTO",null,"23 DE AGOSTO",null,"24 DE AGOSTO",null,"25 DE AGOSTO",null,"26 DE AGOSTO"]
["Entrada","ENSALADA BRUSCHETTA","Entrada","HUEVITO A LA RUSA","Entrada","ENSALADA CAPRESSE","Entrada","ENSALADA FRESCA","Entrada","PAN AL AJO "]
["A","TALLARINES SALTADOS ORIENTALES CON RES","A","CAIGUA RELLENA DE RES CON ARROZ ","A","TACU TACU CON SECO DE RES ","A","ESCABECHE DE POLLO CON ARROZ ","A","COLIFLOR SALTADA CON ARROZ "]
["B","LENTEJITAS GUISADAS CON POLLO Y ARROZ PRIMAVERA","B","ARROZ CHAUFA DE POLLO Y CARNE ","B","POLLO A LA OLLA CON ARROZ ","B","SECO A LA NORTEÑA CON ARROZ BLANCO","B","SPAGHETTI EN SALSA ROJA CON POLLO"]
["C","POLLO A LA PLANCHA CON ARROZ Y VERDURAS","C","POLLO A LA PLANCHA CON VERDURAS","C","POLLO A LA PLANCHA CON ARROZ ","C","POLLO A LA PLANCHA CON PAPAS DORADAS","C","POLLO A LA PLANCHA CON ARROZ PRIMAVERA"]
["D","ENSALADA CÉSAR CON POLLO ","D","ENSALADA MIXTA CON POLLO A LA PLANCHA ","D","ENSALADA DE ESPINACA CON POLLO EN TIRAS","D","ENSALADA ORIENTAL CON POLLO ","D","ENSALADA RUSA CON PAVITA"]
["E","TORTILLAS DE ATÚN CON ARROZ Y VERDURAS","E","ASADO CON PURÉ ","E","POLLO AL HORNO CON PURÉ ","E","MILANESA DE PESCADO CON ARROZ Y VERDURAS","E","MILANESA DE POLLO CON PAPITAS"]
["V","TORTILLA DE VERDURAS CON SOYA Y ARROZ ","V","CAIGUA VEGETARIANA CON ARROZ","V","SECO VEGETARIANO CON ARROZ ","V","ARROZ CHAUFA VEGETARIANO","V","SALTADO DE BRÓCOLI CON SOYA Y ARROZ"]
["postre","FRUTA DE ESTACIÓN ","postre","GALLETAS NATURALES","postre","GELATINA","postre","FRUTA DE ESTACIÓN","postre","GELATINA CON FLAN"]
["refresco","LIMONADA","refresco","CHICHA MORADA","refresco","NARANJADA","refresco","AGUA MINERAL ","refresco","MARACUYÁ"]
["29 DE AGOSTO",null,"30 DE AGOSTO",null,"31 DE AGOSTO",null,"1  DE SEPTIEMBRE",null,"2  DE SEPTIEMBRE"]
["Entrada","ENSALADA RUSA (SIN PAPA)","Entrada",null,"Entrada","ENSALADA DE COL","Entrada",null,"Entrada"]
["A","POLLO SALTADO CON ARROZ","A",null,"A","CAIGUA RELLENA DE RES CON ARROZ BLANCO","A",null,"A"]
["B","AJÍ DE GALLINA CON ARROZ ","B",null,"B","POLLO AL SILLAO CON ARROZ CON VERDURAS","B",null,"B"]
["C","POLLO A LA PLANCHA CON SPAGUETTI A LO ALFREDO","C",null,"C","POLLO A LA PLANCHA CON ARROZ Y VERDURAS","C",null,"C"]
["D","ENSALADA ORIENTAL CON POLLITO A LA PLANCHA","D",null,"D","ENSALADA DELICIA CON POLLO ","D",null,"D"]
["E","PIERNITAS DE POLLO CON PAPITAS","E",null,"E","LENTEJITAS GUISADAS CON PECHIGUITAS DE POLLO","E",null,"E"]
["V","SALTADO DE VERDURAS CON SOYA","V",null,"V","CAIGUA VEGETARIANA CON ARROZ","V",null,"V"]
["postre","FRUTA DE ESTACIÓN","postre",null,"postre","FRUTA DE ESTACIÓN ","postre",null,"postre"]
["refresco","MARACUYÁ","refresco",null,"refresco","LIMONADA","refresco",null,"refresco"]